[Event "Early-Titled-Tuesday-Blitz-February-27-2024"]
[Site "Chess.com"]
[Date "2024.02.27"]
[Round "8"]
[White "Msb2"]
[Black "AlexeiShirov"]
[Result "1-0"]
[WhiteElo "3021"]
[BlackElo "2861"]
[TimeControl "180+1"]
[EndTime "9:27:34 PST"]
[Termination "Msb2 won on time"]

1. d4 {[%clk 0:03:00.9]} 1... d5 {[%clk 0:02:59.9]} 2. c4 {[%clk 0:03:01.5]}
2... c6 {[%clk 0:02:59.3]} 3. Nf3 {[%clk 0:03:01.8]} 3... Nf6 {[%clk 0:02:59.5]}
4. Nc3 {[%clk 0:03:02.7]} 4... e6 {[%clk 0:02:59.2]} 5. Qc2 {[%clk 0:03:03.1]}
5... dxc4 {[%clk 0:02:54.8]} 6. e4 {[%clk 0:03:02.2]} 6... b5 {[%clk 0:02:54.6]}
7. Be2 {[%clk 0:03:02.9]} 7... Bb7 {[%clk 0:02:51.8]} 8. O-O {[%clk 0:03:03.4]}
8... Be7 {[%clk 0:02:49.1]} 9. Rb1 {[%clk 0:03:03.6]} 9... a6 {[%clk 0:02:38.4]}
10. b3 {[%clk 0:03:03.4]} 10... c5 {[%clk 0:02:35.3]} 11. dxc5 {[%clk
0:02:57.6]} 11... cxb3 {[%clk 0:02:33.2]} 12. Rxb3 {[%clk 0:02:54]} 12... Nc6
{[%clk 0:02:24.4]} 13. Bf4 {[%clk 0:02:27.7]} 13... O-O {[%clk 0:02:18.8]} 14.
Rd1 {[%clk 0:02:27.3]} 14... Qc8 {[%clk 0:02:14.7]} 15. e5 {[%clk 0:02:26.6]}
15... Nd5 {[%clk 0:01:58.2]} 16. Nxd5 {[%clk 0:02:24.8]} 16... exd5 {[%clk
0:01:58.4]} 17. Ng5 {[%clk 0:02:15.4]} 17... Bxg5 {[%clk 0:01:53.2]} 18. Bxg5
{[%clk 0:02:13.5]} 18... Nxe5 {[%clk 0:01:51]} 19. Rg3 {[%clk 0:01:54.4]} 19...
Re8 {[%clk 0:01:45.9]} 20. h4 {[%clk 0:01:53.8]} 20... Qe6 {[%clk 0:01:36.2]}
21. h5 {[%clk 0:01:51.7]} 21... h6 {[%clk 0:01:35.1]} 22. Be3 {[%clk 0:01:44.8]}
22... Nc4 {[%clk 0:01:20.7]} 23. Bxc4 {[%clk 0:01:23.8]} 23... dxc4 {[%clk
0:01:12.9]} 24. Qc3 {[%clk 0:01:24.4]} 24... f6 {[%clk 0:01:01.5]} 25. Bxh6
{[%clk 0:01:23.2]} 25... Re7 {[%clk 0:01:00.1]} 26. Bxg7 {[%clk 0:01:03.4]}
26... Rxg7 {[%clk 0:00:55.9]} 27. h6 {[%clk 0:01:04.1]} 27... Rg4 {[%clk
0:00:45.3]} 28. Rd6 {[%clk 0:01:00.2]} 28... Qe4 {[%clk 0:00:32.3]} 29. Rd7
{[%clk 0:00:50.8]} 29... Qb1+ {[%clk 0:00:11.4]} 30. Kh2 {[%clk 0:00:49.8]}
30... Qg6 {[%clk 0:00:11.2]} 31. Rg7+ {[%clk 0:00:44.7]} 31... Qxg7 {[%clk
0:00:09.6]} 32. hxg7 {[%clk 0:00:45.6]} 32... Rh4+ {[%clk 0:00:07.9]} 33. Kg1
{[%clk 0:00:30.4]} 33... Rd8 {[%clk 0:00:04.6]} 34. f3 {[%clk 0:00:31]} 34...
Rd1+ {[%clk 0:00:03.3]} 35. Kf2 {[%clk 0:00:31.2]} 35... Rhh1 {[%clk 0:00:03]}
36. Qxf6 {[%clk 0:00:26]} 36... Rhf1+ {[%clk 0:00:02.7]} 37. Ke3 {[%clk
0:00:26.6]} 37... Rfe1+ {[%clk 0:00:02.4]} 38. Kf4 {[%clk 0:00:27.3]} 38... Re8
{[%clk 0:00:01.7]} 39. Rh3 {[%clk 0:00:26.4]} 1-0

[Event "Early-Titled-Tuesday-Blitz-February-27-2024"]
[Site "Chess.com"]
[Date "2024.02.27"]
[Round "8"]
[White "JonasEilenberg"]
[Black "N4700000"]
[Result "0-1"]
[WhiteElo "2544"]
[BlackElo "2475"]
[TimeControl "180+1"]
[EndTime "9:27:36 PST"]
[Termination "N4700000 won by resignation"]

1. e4 {[%clk 0:03:00.9]} 1... c5 {[%clk 0:02:59.1]} 2. Nf3 {[%clk 0:02:58.8]}
2... d6 {[%clk 0:02:59.6]} 3. Bb5+ {[%clk 0:02:55.2]} 3... Bd7 {[%clk
0:02:58.5]} 4. c4 {[%clk 0:02:55.6]} 4... Nf6 {[%clk 0:02:52.6]} 5. Nc3 {[%clk
0:02:55.8]} 5... Nc6 {[%clk 0:02:52.3]} 6. O-O {[%clk 0:02:47.9]} 6... g6 {[%clk
0:02:51.7]} 7. Bxc6 {[%clk 0:02:45.2]} 7... Bxc6 {[%clk 0:02:44.2]} 8. d4 {[%clk
0:02:45.8]} 8... cxd4 {[%clk 0:02:43.7]} 9. Nxd4 {[%clk 0:02:46.4]} 9... Bg7
{[%clk 0:02:41.5]} 10. Qe2 {[%clk 0:02:17.4]} 10... O-O {[%clk 0:02:36.6]} 11.
Rd1 {[%clk 0:02:16.9]} 11... Qc7 {[%clk 0:01:53.7]} 12. b3 {[%clk 0:02:12.9]}
12... a5 {[%clk 0:01:48.7]} 13. a4 {[%clk 0:02:04.2]} 13... Nd7 {[%clk
0:01:45.5]} 14. Bb2 {[%clk 0:02:00.3]} 14... Qb6 {[%clk 0:01:35.6]} 15. Ndb5
{[%clk 0:01:38.1]} 15... Nc5 {[%clk 0:01:20.1]} 16. Nd5 {[%clk 0:01:38.3]} 16...
Bxd5 {[%clk 0:01:17]} 17. exd5 {[%clk 0:01:39.2]} 17... Bf6 {[%clk 0:00:46.5]}
18. Bxf6 {[%clk 0:01:27]} 18... exf6 {[%clk 0:00:47.4]} 19. Qf3 {[%clk
0:01:26.4]} 19... f5 {[%clk 0:00:39]} 20. h4 {[%clk 0:01:11.6]} 20... h5 {[%clk
0:00:34.9]} 21. Kh2 {[%clk 0:01:11.6]} 21... Rfe8 {[%clk 0:00:34]} 22. Ra2
{[%clk 0:01:10.8]} 22... Re4 {[%clk 0:00:32.1]} 23. g3 {[%clk 0:01:10.5]} 23...
Rae8 {[%clk 0:00:31.3]} 24. Rdd2 {[%clk 0:01:07.6]} 24... Qd8 {[%clk 0:00:27.5]}
25. Qc3 {[%clk 0:00:56.8]} 25... f4 {[%clk 0:00:21.8]} 26. Rd4 {[%clk
0:00:36.4]} 26... fxg3+ {[%clk 0:00:20]} 27. Qxg3 {[%clk 0:00:37]} 27... Rxd4
{[%clk 0:00:16.2]} 28. Nxd4 {[%clk 0:00:37.9]} 28... Re4 {[%clk 0:00:16.2]} 29.
Nf3 {[%clk 0:00:36.2]} 29... Qf6 {[%clk 0:00:15.8]} 30. Rd2 {[%clk 0:00:30.1]}
30... Rf4 {[%clk 0:00:14.9]} 31. Ng5 {[%clk 0:00:23.6]} 31... Rg4 {[%clk
0:00:12.8]} 32. Qh3 {[%clk 0:00:17.1]} 32... Qf4+ {[%clk 0:00:12.8]} 33. Kh1
{[%clk 0:00:15]} 33... Qxd2 {[%clk 0:00:13.2]} 34. Qf3 {[%clk 0:00:15.4]} 34...
Qe1+ {[%clk 0:00:12.5]} 35. Kh2 {[%clk 0:00:15.5]} 35... Rxh4+ {[%clk
0:00:10.5]} 36. Kg3 {[%clk 0:00:15.1]} 36... Rg4+ {[%clk 0:00:10.7]} 37. Kh2
{[%clk 0:00:14.7]} 37... Rxg5 {[%clk 0:00:10.1]} 0-1

[Event "Early-Titled-Tuesday-Blitz-February-27-2024"]
[Site "Chess.com"]
[Date "2024.02.27"]
[Round "8"]
[White "Kimkibo"]
[Black "toninhojit"]
[Result "1-0"]
[WhiteElo "2201"]
[BlackElo "2455"]
[TimeControl "180+1"]
[EndTime "9:27:36 PST"]
[Termination "Kimkibo won by resignation"]

1. d4 {[%clk 0:02:50.1]} 1... Nf6 {[%clk 0:02:59.3]} 2. c4 {[%clk 0:02:45.4]}
2... c5 {[%clk 0:02:59.8]} 3. d5 {[%clk 0:02:45.3]} 3... e6 {[%clk 0:03:00.4]}
4. Nc3 {[%clk 0:02:44.6]} 4... exd5 {[%clk 0:03:01.1]} 5. cxd5 {[%clk
0:02:45.3]} 5... d6 {[%clk 0:03:01.7]} 6. e4 {[%clk 0:02:44.4]} 6... g6 {[%clk
0:03:02.3]} 7. f4 {[%clk 0:02:41.8]} 7... Bg7 {[%clk 0:03:02.4]} 8. Nf3 {[%clk
0:02:41.4]} 8... O-O {[%clk 0:03:01.8]} 9. Bd3 {[%clk 0:02:35.9]} 9... Bg4
{[%clk 0:02:50]} 10. O-O {[%clk 0:02:34.5]} 10... Nbd7 {[%clk 0:02:49.2]} 11. h3
{[%clk 0:02:31.9]} 11... Bxf3 {[%clk 0:02:49.6]} 12. Qxf3 {[%clk 0:02:32.4]}
12... a6 {[%clk 0:02:47.3]} 13. a4 {[%clk 0:02:31.9]} 13... Qc7 {[%clk
0:02:48.1]} 14. Re1 {[%clk 0:02:27.8]} 14... c4 {[%clk 0:02:48.6]} 15. Bc2
{[%clk 0:02:26.9]} 15... b5 {[%clk 0:02:49.3]} 16. Be3 {[%clk 0:02:21.1]} 16...
b4 {[%clk 0:02:47.4]} 17. Ne2 {[%clk 0:02:10.2]} 17... b3 {[%clk 0:02:45.3]} 18.
Bb1 {[%clk 0:01:57.9]} 18... Rfe8 {[%clk 0:02:45.3]} 19. Nc3 {[%clk 0:01:56.9]}
19... Nc5 {[%clk 0:02:45.3]} 20. Bd4 {[%clk 0:01:51.6]} 20... Nfd7 {[%clk
0:02:34.4]} 21. Bxg7 {[%clk 0:01:49.4]} 21... Kxg7 {[%clk 0:02:35.3]} 22. e5
{[%clk 0:01:46]} 22... dxe5 {[%clk 0:02:31.6]} 23. f5 {[%clk 0:01:46.1]} 23...
e4 {[%clk 0:02:26.7]} 24. Bxe4 {[%clk 0:01:42]} 24... Nf6 {[%clk 0:02:13.6]} 25.
d6 {[%clk 0:01:35.6]} 25... Qb6 {[%clk 0:02:12.9]} 26. Bxa8 {[%clk 0:01:31]}
26... Nd3+ {[%clk 0:02:11.1]} 27. Kf1 {[%clk 0:01:23.4]} 27... Nxe1 {[%clk
0:02:05.6]} 28. Rxe1 {[%clk 0:01:22.4]} 28... Rxe1+ {[%clk 0:02:01.4]} 29. Kxe1
{[%clk 0:01:23.2]} 29... Qxd6 {[%clk 0:01:56.1]} 30. fxg6 {[%clk 0:01:18.1]}
30... hxg6 {[%clk 0:01:55.6]} 31. Nd5 {[%clk 0:01:11.2]} 31... Qe5+ {[%clk
0:01:52.7]} 32. Kd1 {[%clk 0:01:06.6]} 32... Ne4 {[%clk 0:01:45.6]} 33. Qe3
{[%clk 0:00:40.5]} 33... f5 {[%clk 0:01:30.2]} 34. Nc3 {[%clk 0:00:38.1]} 34...
Qd6+ {[%clk 0:01:20]} 35. Bd5 {[%clk 0:00:34.8]} 35... Nf6 {[%clk 0:01:08]} 36.
Qd4 {[%clk 0:00:29.7]} 36... Kh6 {[%clk 0:01:01.2]} 37. Qxc4 {[%clk 0:00:27.8]}
37... Qe5 {[%clk 0:00:47.1]} 38. Qxb3 {[%clk 0:00:18.7]} 38... Qd4+ {[%clk
0:00:47.3]} 39. Kc1 {[%clk 0:00:17.4]} 39... a5 {[%clk 0:00:47.7]} 40. Qd1
{[%clk 0:00:16.2]} 40... Qe3+ {[%clk 0:00:44.6]} 41. Qd2 {[%clk 0:00:16.6]}
41... Qxd2+ {[%clk 0:00:41.8]} 42. Kxd2 {[%clk 0:00:16.8]} 42... Kg5 {[%clk
0:00:42.4]} 43. Bf3 {[%clk 0:00:15.4]} 43... Kf4 {[%clk 0:00:42.4]} 44. Nd5+
{[%clk 0:00:15.1]} 1-0

[Event "Early-Titled-Tuesday-Blitz-February-27-2024"]
[Site "Chess.com"]
[Date "2024.02.27"]
[Round "8"]
[White "EsmeraldasAnderson03"]
[Black "Egor_Koshulyan"]
[Result "0-1"]
[WhiteElo "2500"]
[BlackElo "2663"]
[TimeControl "180+1"]
[EndTime "9:27:37 PST"]
[Termination "Egor_Koshulyan won on time"]

1. d4 {[%clk 0:03:00.9]} 1... Nf6 {[%clk 0:02:50]} 2. c4 {[%clk 0:03:01.3]} 2...
e5 {[%clk 0:02:49.3]} 3. dxe5 {[%clk 0:03:01.1]} 3... Ng4 {[%clk 0:02:50]} 4.
Nf3 {[%clk 0:03:01.7]} 4... Bc5 {[%clk 0:02:50.3]} 5. e3 {[%clk 0:03:01.8]} 5...
Nc6 {[%clk 0:02:50.9]} 6. Be2 {[%clk 0:03:00.6]} 6... O-O {[%clk 0:02:50.6]} 7.
O-O {[%clk 0:03:01.1]} 7... Re8 {[%clk 0:02:50.7]} 8. Nc3 {[%clk 0:03:00.1]}
8... Ngxe5 {[%clk 0:02:51.3]} 9. a3 {[%clk 0:02:56.1]} 9... a5 {[%clk
0:02:51.6]} 10. Nb5 {[%clk 0:02:54.1]} 10... Nxf3+ {[%clk 0:02:48.1]} 11. Bxf3
{[%clk 0:02:54]} 11... Ne5 {[%clk 0:02:49]} 12. Be2 {[%clk 0:02:53.5]} 12... Ra6
{[%clk 0:02:47.6]} 13. b3 {[%clk 0:02:41.7]} 13... Qh4 {[%clk 0:02:37.8]} 14. g3
{[%clk 0:01:58]} 14... Qh3 {[%clk 0:02:30.6]} 15. f4 {[%clk 0:01:47.7]} 15...
Rg6 {[%clk 0:02:07.2]} 16. Rf2 {[%clk 0:01:41.3]} 16... Ng4 {[%clk 0:02:01.8]}
17. Bxg4 {[%clk 0:01:37.3]} 17... Rxg4 {[%clk 0:02:02.7]} 18. Nxc7 {[%clk
0:01:35.7]} 18... Rxe3 {[%clk 0:02:02.4]} 19. Bxe3 {[%clk 0:01:15.3]} 19... Bxe3
{[%clk 0:02:03.3]} 20. Qf3 {[%clk 0:01:06.9]} 20... Bxf2+ {[%clk 0:01:12.4]} 21.
Qxf2 {[%clk 0:01:06.5]} 21... d6 {[%clk 0:00:59.2]} 22. Re1 {[%clk 0:01:01.4]}
22... Bd7 {[%clk 0:00:59]} 23. Qg2 {[%clk 0:00:39.9]} 23... Qh5 {[%clk
0:00:55.9]} 24. Qxb7 {[%clk 0:00:38.8]} 24... Qc5+ {[%clk 0:00:49]} 25. Kf1
{[%clk 0:00:25.2]} 25... h6 {[%clk 0:00:31.7]} 26. Nd5 {[%clk 0:00:15.4]} 26...
Be6 {[%clk 0:00:28]} 27. Qe7 {[%clk 0:00:07.9]} 27... Rg6 {[%clk 0:00:16.2]} 28.
Ne3 {[%clk 0:00:05.2]} 28... Bh3+ {[%clk 0:00:15.8]} 29. Kf2 {[%clk 0:00:04.9]}
29... Re6 {[%clk 0:00:16.1]} 30. Qd8+ {[%clk 0:00:05.4]} 30... Kh7 {[%clk
0:00:16.7]} 31. Qa8 {[%clk 0:00:03.8]} 31... Qxa3 {[%clk 0:00:14.8]} 32. Qb7
{[%clk 0:00:01.8]} 32... Qb2+ {[%clk 0:00:14.7]} 33. Re2 {[%clk 0:00:02.3]}
33... Qc1 {[%clk 0:00:14.7]} 34. Qd5 {[%clk 0:00:01.7]} 34... Rxe3 {[%clk
0:00:12.6]} 0-1

[Event "Early-Titled-Tuesday-Blitz-February-27-2024"]
[Site "Chess.com"]
[Date "2024.02.27"]
[Round "8"]
[White "agvania123"]
[Black "VinzentSpitzl"]
[Result "0-1"]
[WhiteElo "2400"]
[BlackElo "2527"]
[TimeControl "180+1"]
[EndTime "9:27:41 PST"]
[Termination "VinzentSpitzl won on time"]

1. e4 {[%clk 0:03:00.9]} 1... c5 {[%clk 0:02:40.9]} 2. Nc3 {[%clk 0:02:57.8]}
2... d6 {[%clk 0:02:40.7]} 3. f4 {[%clk 0:02:55.3]} 3... g6 {[%clk 0:02:40.8]}
4. Nf3 {[%clk 0:02:53.9]} 4... Bg7 {[%clk 0:02:40.5]} 5. Bb5+ {[%clk 0:02:52.3]}
5... Bd7 {[%clk 0:02:40.4]} 6. Bxd7+ {[%clk 0:02:48.9]} 6... Qxd7 {[%clk
0:02:40.3]} 7. O-O {[%clk 0:02:47.6]} 7... Nc6 {[%clk 0:02:40.5]} 8. d3 {[%clk
0:02:46.7]} 8... Nf6 {[%clk 0:02:39.5]} 9. Qe1 {[%clk 0:02:45.7]} 9... O-O
{[%clk 0:02:38.9]} 10. Qh4 {[%clk 0:02:45.6]} 10... Nd4 {[%clk 0:02:36]} 11.
Nxd4 {[%clk 0:02:44.5]} 11... cxd4 {[%clk 0:02:36.3]} 12. Ne2 {[%clk 0:02:44.6]}
12... Rac8 {[%clk 0:02:32.2]} 13. c3 {[%clk 0:02:15.5]} 13... dxc3 {[%clk
0:02:30.8]} 14. bxc3 {[%clk 0:02:16.4]} 14... Qb5 {[%clk 0:02:21.5]} 15. Qh3
{[%clk 0:02:07.6]} 15... Nxe4 {[%clk 0:02:12.5]} 16. c4 {[%clk 0:01:40]} 16...
Qc6 {[%clk 0:01:42.1]} 17. Rb1 {[%clk 0:01:36.2]} 17... Nc3 {[%clk 0:01:32.7]}
18. Nxc3 {[%clk 0:01:35.4]} 18... Bxc3 {[%clk 0:01:33.6]} 19. Qf3 {[%clk
0:01:34.6]} 19... Qxf3 {[%clk 0:01:31.4]} 20. Rxf3 {[%clk 0:01:35.5]} 20... Bd4+
{[%clk 0:01:28]} 21. Be3 {[%clk 0:01:33.2]} 21... Bxe3+ {[%clk 0:01:28.5]} 22.
Rxe3 {[%clk 0:01:34.1]} 22... Rc7 {[%clk 0:01:29]} 23. Kf2 {[%clk 0:01:28.5]}
23... b6 {[%clk 0:01:28.5]} 24. g4 {[%clk 0:01:28.3]} 24... e6 {[%clk
0:01:24.1]} 25. Rb5 {[%clk 0:01:24.4]} 25... Rc5 {[%clk 0:01:21.4]} 26. a4
{[%clk 0:01:24]} 26... Kg7 {[%clk 0:01:11.5]} 27. Re2 {[%clk 0:01:03.9]} 27...
Rfc8 {[%clk 0:01:07.1]} 28. h4 {[%clk 0:01:01.4]} 28... Kf6 {[%clk 0:01:00.3]}
29. Kf3 {[%clk 0:00:53.3]} 29... h5 {[%clk 0:00:48.4]} 30. Reb2 {[%clk
0:00:18.7]} 30... hxg4+ {[%clk 0:00:46.7]} 31. Kxg4 {[%clk 0:00:19.6]} 31... e5
{[%clk 0:00:30.8]} 32. fxe5+ {[%clk 0:00:18.5]} 32... dxe5 {[%clk 0:00:30.3]}
33. Rf2+ {[%clk 0:00:15.6]} 33... Ke6 {[%clk 0:00:30.4]} 34. Rb1 {[%clk
0:00:15.4]} 34... Rh8 {[%clk 0:00:23.8]} 35. Rbf1 {[%clk 0:00:13.5]} 35... f5+
{[%clk 0:00:23.7]} 36. Kg5 {[%clk 0:00:14]} 36... Rcc8 {[%clk 0:00:23.1]} 37.
Re2 {[%clk 0:00:08.2]} 37... Rcg8 {[%clk 0:00:22.3]} 0-1

[Event "Early-Titled-Tuesday-Blitz-February-27-2024"]
[Site "Chess.com"]
[Date "2024.02.27"]
[Round "8"]
[White "LangesNasenhaar"]
[Black "BozeKat"]
[Result "1-0"]
[WhiteElo "2406"]
[BlackElo "2160"]
[TimeControl "180+1"]
[EndTime "9:27:42 PST"]
[Termination "LangesNasenhaar won on time"]

1. d4 {[%clk 0:03:00.9]} 1... Nf6 {[%clk 0:02:59.8]} 2. Bg5 {[%clk 0:03:00.8]}
2... c5 {[%clk 0:02:58.9]} 3. Bxf6 {[%clk 0:03:00.7]} 3... gxf6 {[%clk
0:02:57.5]} 4. d5 {[%clk 0:03:01.1]} 4... e6 {[%clk 0:02:56.5]} 5. c4 {[%clk
0:03:00.6]} 5... Qb6 {[%clk 0:02:50.5]} 6. Qc2 {[%clk 0:02:59.2]} 6... Bg7
{[%clk 0:02:39.4]} 7. Nc3 {[%clk 0:02:58.7]} 7... f5 {[%clk 0:02:31.9]} 8. e3
{[%clk 0:02:59.1]} 8... Na6 {[%clk 0:02:27.8]} 9. a3 {[%clk 0:02:58.1]} 9... Qa5
{[%clk 0:02:24.6]} 10. Rb1 {[%clk 0:02:47.2]} 10... Rg8 {[%clk 0:02:02.5]} 11.
g3 {[%clk 0:02:40]} 11... b6 {[%clk 0:01:45.8]} 12. Bg2 {[%clk 0:02:34.4]} 12...
Bb7 {[%clk 0:01:43.9]} 13. Ne2 {[%clk 0:02:34.6]} 13... exd5 {[%clk 0:01:15.4]}
14. cxd5 {[%clk 0:02:31.2]} 14... b5 {[%clk 0:01:08.5]} 15. Qxf5 {[%clk
0:02:14.3]} 15... b4 {[%clk 0:01:04.4]} 16. axb4 {[%clk 0:02:12.8]} 16... cxb4
{[%clk 0:00:54.9]} 17. Ne4 {[%clk 0:02:12.9]} 17... b3+ {[%clk 0:00:52.2]} 18.
N2c3 {[%clk 0:02:10.6]} 18... O-O-O {[%clk 0:00:38.5]} 19. O-O {[%clk
0:02:01.5]} 19... Kb8 {[%clk 0:00:36.5]} 20. Qxf7 {[%clk 0:01:41.3]} 20... Nc5
{[%clk 0:00:23.7]} 21. Nd6 {[%clk 0:01:35.2]} 21... Rdf8 {[%clk 0:00:18.9]} 22.
Nxb7 {[%clk 0:01:27.4]} 22... Nxb7 {[%clk 0:00:18]} 23. Qxd7 {[%clk 0:01:23.5]}
23... Qb6 {[%clk 0:00:16]} 24. Qc6 {[%clk 0:01:19.2]} 24... Qb4 {[%clk
0:00:14.6]} 25. d6 {[%clk 0:01:12.1]} 25... Rc8 {[%clk 0:00:13.1]} 26. Qxb7+
{[%clk 0:01:06.8]} 26... Qxb7 {[%clk 0:00:14]} 27. Bxb7 {[%clk 0:01:06.4]} 27...
Kxb7 {[%clk 0:00:14.3]} 28. Rfd1 {[%clk 0:00:47.3]} 28... Bxc3 {[%clk
0:00:12.2]} 29. bxc3 {[%clk 0:00:47.6]} 29... Rxc3 {[%clk 0:00:11.7]} 30. Rd4
{[%clk 0:00:45.7]} 30... a5 {[%clk 0:00:09.8]} 31. e4 {[%clk 0:00:40.1]} 31...
Kb6 {[%clk 0:00:06.6]} 32. e5 {[%clk 0:00:39.5]} 32... Kc5 {[%clk 0:00:06.8]}
33. Rh4 {[%clk 0:00:35.2]} 33... Rc4 {[%clk 0:00:04]} 34. Rxh7 {[%clk
0:00:32.9]} 34... a4 {[%clk 0:00:03.3]} 35. Rc7+ {[%clk 0:00:28.5]} 35... Kb5
{[%clk 0:00:03]} 36. Rb7+ {[%clk 0:00:21.7]} 36... Kc6 {[%clk 0:00:02.8]} 37.
Ra7 {[%clk 0:00:20.1]} 37... Kb5 {[%clk 0:00:03.1]} 38. e6 {[%clk 0:00:19.7]}
38... Rc2 {[%clk 0:00:02]} 39. e7 {[%clk 0:00:19]} 39... b2 {[%clk 0:00:02.2]}
40. Rb7+ {[%clk 0:00:18.7]} 1-0

[Event "Early-Titled-Tuesday-Blitz-February-27-2024"]
[Site "Chess.com"]
[Date "2024.02.27"]
[Round "8"]
[White "Lukianoo"]
[Black "Boundless_Strike"]
[Result "0-1"]
[WhiteElo "2831"]
[BlackElo "2644"]
[TimeControl "180+1"]
[EndTime "9:27:44 PST"]
[Termination "Boundless_Strike won on time"]

1. e4 {[%clk 0:03:00.9]} 1... d6 {[%clk 0:02:56]} 2. d4 {[%clk 0:03:00.7]} 2...
e5 {[%clk 0:02:56.5]} 3. Nc3 {[%clk 0:03:01]} 3... Nd7 {[%clk 0:02:52.2]} 4. Nf3
{[%clk 0:03:01]} 4... Ngf6 {[%clk 0:02:52.3]} 5. g4 {[%clk 0:03:01.4]} 5... g6
{[%clk 0:02:38.5]} 6. g5 {[%clk 0:02:56.2]} 6... Nh5 {[%clk 0:02:38]} 7. Be3
{[%clk 0:02:55.6]} 7... Bg7 {[%clk 0:02:37.9]} 8. Qd2 {[%clk 0:02:55.7]} 8...
O-O {[%clk 0:02:37.6]} 9. O-O-O {[%clk 0:02:55.5]} 9... c6 {[%clk 0:02:36.3]}
10. dxe5 {[%clk 0:02:38]} 10... dxe5 {[%clk 0:02:32.9]} 11. Qd6 {[%clk
0:02:16.3]} 11... Re8 {[%clk 0:02:05]} 12. Bh3 {[%clk 0:01:55]} 12... Bf8 {[%clk
0:02:03.5]} 13. Qd2 {[%clk 0:01:29.4]} 13... Qc7 {[%clk 0:01:28.9]} 14. Bg4
{[%clk 0:01:21]} 14... Nf4 {[%clk 0:01:21.7]} 15. Bxf4 {[%clk 0:01:15]} 15...
exf4 {[%clk 0:01:21.7]} 16. Bxd7 {[%clk 0:01:14.7]} 16... Rd8 {[%clk 0:01:18.4]}
17. e5 {[%clk 0:01:14.8]} 17... Bxd7 {[%clk 0:00:42.7]} 18. Qxf4 {[%clk
0:01:14.3]} 18... Qa5 {[%clk 0:00:37.9]} 19. Kb1 {[%clk 0:01:05]} 19... Bb4
{[%clk 0:00:28.4]} 20. Ne4 {[%clk 0:00:51.2]} 20... Be6 {[%clk 0:00:28.4]} 21.
Nf6+ {[%clk 0:00:50.2]} 21... Kg7 {[%clk 0:00:26.1]} 22. a3 {[%clk 0:00:50.2]}
22... Bxa3 {[%clk 0:00:20.2]} 23. Qh4 {[%clk 0:00:24.8]} 23... h5 {[%clk
0:00:17.3]} 24. gxh6+ {[%clk 0:00:24.8]} 24... Kh8 {[%clk 0:00:17.5]} 25. Nd4
{[%clk 0:00:18.6]} 25... Rxd4 {[%clk 0:00:10.2]} 26. Qxd4 {[%clk 0:00:17.6]}
26... Bc5 {[%clk 0:00:09.8]} 27. Qc3 {[%clk 0:00:11]} 27... Bb4 {[%clk
0:00:09.3]} 28. Qxb4 {[%clk 0:00:04.4]} 28... Qxb4 {[%clk 0:00:09]} 29. Rd3
{[%clk 0:00:03.1]} 29... Qf4 {[%clk 0:00:05]} 30. Rhd1 {[%clk 0:00:02.9]} 30...
Bd5 {[%clk 0:00:05.6]} 0-1

[Event "Early-Titled-Tuesday-Blitz-February-27-2024"]
[Site "Chess.com"]
[Date "2024.02.27"]
[Round "8"]
[White "amanjazu"]
[Black "GodzillaChessYoutube"]
[Result "1-0"]
[WhiteElo "2537"]
[BlackElo "2663"]
[TimeControl "180+1"]
[EndTime "9:27:47 PST"]
[Termination "amanjazu won on time"]

1. g3 {[%clk 0:03:00.9]} 1... d5 {[%clk 0:02:59.1]} 2. Bg2 {[%clk 0:03:01.8]}
2... Nc6 {[%clk 0:02:59.3]} 3. f4 {[%clk 0:03:02.4]} 3... Nf6 {[%clk 0:02:52.9]}
4. Nf3 {[%clk 0:03:02.9]} 4... h6 {[%clk 0:02:48.5]} 5. O-O {[%clk 0:03:03.8]}
5... Bf5 {[%clk 0:02:47.5]} 6. d3 {[%clk 0:03:04.7]} 6... e6 {[%clk 0:02:44.5]}
7. Nc3 {[%clk 0:03:05.2]} 7... Bc5+ {[%clk 0:02:43]} 8. Kh1 {[%clk 0:03:04.9]}
8... Ng4 {[%clk 0:02:24.8]} 9. d4 {[%clk 0:03:04.8]} 9... Bb4 {[%clk 0:02:23.6]}
10. Ne5 {[%clk 0:03:01.2]} 10... h5 {[%clk 0:02:11.7]} 11. h3 {[%clk 0:02:51.4]}
11... Nf6 {[%clk 0:01:41.1]} 12. Kh2 {[%clk 0:02:10.4]} 12... Bd6 {[%clk
0:01:20.3]} 13. Kh1 {[%clk 0:02:04.3]} 13... Nb4 {[%clk 0:01:14.4]} 14. a3
{[%clk 0:01:14.5]} 14... Nxc2 {[%clk 0:01:03]} 15. Ra2 {[%clk 0:01:14.4]} 15...
c5 {[%clk 0:00:53.3]} 16. dxc5 {[%clk 0:00:57]} 16... Bxc5 {[%clk 0:00:20]} 17.
e4 {[%clk 0:00:56.4]} 17... Nxe4 {[%clk 0:00:16.6]} 18. Nxe4 {[%clk 0:00:51.2]}
18... dxe4 {[%clk 0:00:14.6]} 19. Qxc2 {[%clk 0:00:50.1]} 19... Rc8 {[%clk
0:00:15.3]} 20. Qa4+ {[%clk 0:00:43.3]} 20... Kf8 {[%clk 0:00:14.7]} 21. Rd1
{[%clk 0:00:43.7]} 21... Qc7 {[%clk 0:00:14.4]} 22. b4 {[%clk 0:00:35.5]} 22...
Bd6 {[%clk 0:00:12.8]} 23. Nd7+ {[%clk 0:00:18.3]} 23... Kg8 {[%clk 0:00:12.5]}
24. Rad2 {[%clk 0:00:18.2]} 24... Be7 {[%clk 0:00:12.1]} 25. Bb2 {[%clk
0:00:17]} 25... f6 {[%clk 0:00:11.6]} 26. Nc5 {[%clk 0:00:16.1]} 26... Bxc5
{[%clk 0:00:11.6]} 27. bxc5 {[%clk 0:00:17]} 27... Qxc5 {[%clk 0:00:10.7]} 28.
Qd4 {[%clk 0:00:15.1]} 28... Qf8 {[%clk 0:00:10.8]} 29. Bxe4 {[%clk 0:00:15]}
29... Bxh3 {[%clk 0:00:10.4]} 30. Bxb7 {[%clk 0:00:13.9]} 30... Rb8 {[%clk
0:00:09.1]} 31. Qd8 {[%clk 0:00:13.3]} 31... Rxd8 {[%clk 0:00:08.1]} 32. Rxd8
{[%clk 0:00:14.2]} 32... Kf7 {[%clk 0:00:06.5]} 33. R1d7+ {[%clk 0:00:13.2]}
33... Qe7 {[%clk 0:00:05.6]} 34. Rxe7+ {[%clk 0:00:13]} 34... Kxe7 {[%clk
0:00:04.1]} 35. Rxh8 {[%clk 0:00:13.9]} 35... Kd6 {[%clk 0:00:04.3]} 36. Rxh5
{[%clk 0:00:14]} 36... Bg4 {[%clk 0:00:04.9]} 37. Ra5 {[%clk 0:00:14.7]} 1-0